[Event "WALTON 1st Div Women League 2023"]
[Site "Dhaka"]
[Date "2023.03.22"]
[Round "1.1"]
[White "Wadifa, Ahmed"]
[Black "Rashma, Alam"]
[Result "1-0"]
[ECO "C75"]
[WhiteElo "1811"]
[BlackElo "1047"]
[Annotator "NA RC COMBH"]
[PlyCount "59"]
[EventDate "2023.03.22"]
[EventType "team-tourn"]
[EventCountry "BAN"]
[SourceTitle "playchess.com"]
[Source "ChessBase"]
[SourceQuality "1"]
[TimeControl "5400+30"]

{[%evp 20,59,185,197,225,224,202,184,181,180,307,214,239,217,241,220,320,190,380,387,439,454,32767,32767,32767,32767,32767,645,712,713,1105,998,32767,32767,32767,32767,32767,32767,32767,32767,32767,29992]} 1. e4 {[%emt 0:13:09]} e5 {[%emt 0:00:02]} 2. Nf3 {[%emt 0:00:05]} d6 {[%emt 0:00:17]} 3. d4 {[%emt 0:00:31]} Nc6 {[%emt 0:03:16]} 4. Bb5 {[%emt 0:02:15]} Bd7 {[%emt 0:00:58]} 5. c3 {[%emt 0:02:40]} Nf6 {[%emt 0:03:06]} 6. Nbd2 {[%emt 0:01:26]} a6 {[%emt 0:09:31]} 7. Ba4 {[%emt 0:00:08]} b5 {[%emt 0:02:08]} 8. Bc2 {[%emt 0:04:18]} g6 {[%emt 0:00:43]} 9. O-O {[%emt 0:01:21]} Bg7 {[%emt 0:01:05]} 10. a4 {[%emt 0:02:49]} Ne7 $2 {[%emt 0:06:16]} (10... exd4 $1 $11 {and Black is okay.} 11. Nxd4 b4) 11. dxe5 {[%emt 0:02:47]} dxe5 {[%emt 0:00:05]} (11... Nh5 $142 12. exd6 cxd6 13. axb5 Bxb5) 12. Nxe5 {[%emt 0:00:42]} O-O {[%emt 0:04:23]} 13. Nxd7 {[%emt 0:02:30]} Qxd7 {[%emt 0:00:19]} 14. Nf3 {[%emt 0:00:45]} Qg4 {[%emt 0:02:01]} (14... b4 $142 15. Qxd7 (15. cxb4 Nc6 $16) 15... Nxd7) 15. h3 {[%emt 0:01:34]} Qc8 {[%emt 0:00:55]} 16. Qe2 {[%emt 0:01:05]} c6 {[%emt 0:00:40]} 17. Be3 {[%emt 0:01:58]} Rd8 {[%emt 0:00:55]} 18. Bc5 {[%emt 0:02:53]} (18. Bb3 $142) 18... Qe6 $2 {[%emt 0:01:10]} (18... Re8 19. Be3 Qb7) 19. Nd4 {[%emt 0:01:18]} Qe5 {[%emt 0:00:35]} 20. Bxe7 {[%emt 0:00:04]} Qxe7 {[%emt 0:01:24]} 21. Nxc6 {[%emt 0:00:02]} Qd7 {[%emt 0:01:48]} 22. Nxd8 {[%emt 0:00:14]} Qxd8 {[%emt 0:01:00]} 23. Rfd1 {[%emt 0:00:01]} Qe7 {[%emt 0:00:04]} 24. axb5 {[%emt 0:00:06]} Qb7 {[%emt 0:03:16]} 25. bxa6 {[%emt 0:01:44]} Qe7 {[%emt 0:01:21]} 26. Qb5 {[%emt 0:01:30]} Nxe4 {[%emt 0:56:12]} 27. Qb7 {[%emt 0:56:05]} Qh4 {[%emt 0:00:00]} 28. Qxa8+ {[%emt 0:00:00]} Bf8 {[%emt 0:00:00]} 29. Qxe4 {[%emt 0:00:00]} Qxe4 {[%emt 0:00:00]} 30. Bxe4 {[%emt 0:00:00]} 1-0

[Event "WALTON 1st Div Women League 2023"]
[Site "Dhaka"]
[Date "2023.03.22"]
[Round "1.2"]
[White "Sanjeedah, Khanam Mitul"]
[Black "Ahmed, Walijah"]
[Result "0-1"]
[ECO "B30"]
[WhiteElo "1165"]
[BlackElo "1920"]
[Annotator "TA"]
[PlyCount "52"]
[EventDate "2023.03.22"]
[EventType "team-tourn"]
[EventCountry "BAN"]
[SourceTitle "playchess.com"]
[Source "ChessBase"]
[SourceQuality "1"]
[TimeControl "5400+30"]

{[%evp 9,51,-11,-4,-47,-22,-52,-31,-29,-23,-508,-499,-471,-462,-514,-495,-597,-523,-732,-570,-556,-562,-613,-482,-604,-601,-597,-591,-773,-772,-923,-894,-889,-702,-956,-943,-1075,-1067,-1239,-1158,-29994,-29995,-29996,-2156,-29999]} 1. e4 {[%emt 0:07:02]} c5 {[%emt 0:06:39]} 2. Bc4 {[%emt 0:00:20]} e6 {[%emt 0:00:13]} 3. Nf3 {[%emt 0:00:37]} Nc6 {[%emt 0:00:26]} 4. c3 {[%emt 0:00:36]} Qc7 {[%emt 0:03:49]} 5. d3 {[%emt 0:01:18]} Nf6 {[%emt 0:01:10]} 6. h3 {[%emt 0:02:55] B30: Sicilian: 2...Nc6 3 Bb5, lines without ...g6.} Be7 {[%emt 0:02:33]} (6... d5 $5 {[%cal Rd5c4]} 7. exd5 exd5 $15) 7. Be3 {[%emt 0:03:38]} a6 {[%emt 0:05:05] [#]} 8. Bg5 $146 {[%emt 0:02:17] Black is slightly better.} ({Predecessor:} 8. Nbd2 O-O 9. O-O d5 10. exd5 exd5 11. Bb3 Re8 12. Re1 Bf5 13. Nf1 h6 14. Re2 {0-1 Kedzierska,L (1308)-Ciesinska,W (1449) POL-chT U19 2nd League 2015 (10.101)}) 8... h6 {[%emt 0:01:36]} 9. Qd2 {[%emt 0:02:31][%mdl 8192]} hxg5 $19 {[%emt 0:01:08]} 10. Qxg5 {[%emt 0:02:49]} g6 {[%emt 0:03:20][%cal Od7d5]} ({Don't go for} 10... Nh5 $2 11. Qd2 $19) 11. Nbd2 {[%emt 0:02:49] [#]} Nxe4 $1 {[%emt 0:02:35][%mdl 576] Discovered Attack} 12. Qg4 {[%emt 0:02:54]} (12. Qe3 Nxd2) 12... Nxd2 {[%emt 0:00:57]} 13. Kxd2 {[%emt 0:00:20]} Ne5 {[%emt 0:01:23]} 14. Nxe5 {[%emt 0:00:29]} Qxe5 {[%emt 0:00:05]} 15. f4 {[%emt 0:01:20]} Qh5 {[%emt 0:01:44]} 16. Qg3 {[%emt 0:00:56]} b5 {[%emt 0:02:20]} 17. Bb3 {[%emt 0:01:09]} Bb7 {[%emt 0:00:07]} 18. Rhe1 {[%emt 0:01:01]} Bh4 {[%emt 0:00:57]} 19. Qe3 {[%emt 0:01:25]} Bxe1+ {[%emt 0:00:46]} 20. Rxe1 {[%emt 0:00:22]} Rc8 {[%emt 0:01:40]} 21. g4 {[%emt 0:00:29]} Qxh3 {[%emt 0:00:58]} 22. Qe5 {[%emt 0:04:15]} Bf3 {[%emt 0:02:59] [#] ...Qg2+ is the strong threat.} 23. c4 {[%emt 0:02:08]} Qg2+ {[%emt 0:01:30]} 24. Ke3 {[%emt 0:01:00]} Rh3 {[%emt 0:00:27][%cal Rf3g4]} 25. f5 {[%emt 0:01:35]} Be2+ {[%emt 0:00:39]} (25... f6 $142 26. Qg3 Rxg3 27. cxb5 Bxg4+ {[%mdl 64] Discovered Attack} 28. Kf4 g5#) 26. Kf4 {[%emt 0:00:50]} Qxg4# {[%emt 0:00:06] Black took control after the opening.   Weighted Error Value: White=1.23/Black=0.34} 0-1

[Event "WALTON 1st Div Women League 2023"]
[Site "Dhaka"]
[Date "2023.03.22"]
[Round "1.3"]
[White "Kazi Zarin, Tasnim"]
[Black "Monika, Kundu"]
[Result "1-0"]
[ECO "C45"]
[WhiteElo "1837"]
[BlackElo "1333"]
[Annotator "NA RC COMBH"]
[PlyCount "69"]
[EventDate "2023.03.22"]
[EventType "team-tourn"]
[EventCountry "BAN"]
[SourceTitle "playchess.com"]
[Source "ChessBase"]
[SourceQuality "1"]
[TimeControl "5400+30"]

1. e4 {[%emt 0:00:10]} e5 {[%emt 0:00:07]} 2. Nf3 {[%emt 0:00:08]} Nc6 {[%emt 0:00:13]} 3. Bc4 {[%emt 0:00:07]} d6 {[%emt 0:00:28]} 4. d4 {[%emt 0:00:52]} Nxd4 {[%emt 0:00:55]} 5. Nxd4 {[%emt 0:00:04]} exd4 {[%emt 0:00:22]} 6. Qxd4 {[%emt 0:00:06]} Qf6 {[%emt 0:01:01]} 7. Qe3 {[%emt 0:03:00]} Be6 {[%emt 0:01:09]} 8. Bd3 {[%emt 0:03:10]} Nh6 {[%emt 0:00:27]} 9. h3 {[%emt 0:01:55]} Qd8 {[%emt 0:04:59]} 10. Nc3 {[%emt 0:02:13]} Be7 {[%emt 0:01:05]} 11. Qg3 {[%emt 0:03:15]} Bf6 {[%emt 0:00:54]} 12. O-O {[%emt 0:01:33]} Qd7 {[%emt 0:04:12]} 13. f4 {[%emt 0:03:38]} Bd4+ {[%emt 0:02:40]} 14. Be3 {[%emt 0:03:17]} Bxe3+ {[%emt 0:00:20]} 15. Qxe3 {[%emt 0:00:02]} Qe7 {[%emt 0:00:22]} 16. Rae1 {[%emt 0:00:56]} O-O {[%emt 0:01:56]} 17. f5 {[%emt 0:00:54]} Bxf5 {[%emt 0:05:25]} 18. exf5 {[%emt 0:00:38]} Qxe3+ {[%emt 0:00:18]} 19. Rxe3 {[%emt 0:00:05]} c6 {[%emt 0:01:24]} 20. Re7 {[%emt 0:02:11]} b5 {[%emt 0:01:16]} 21. f6 {[%emt 0:01:54]} Rfe8 {[%emt 0:01:05]} 22. Rfe1 {[%emt 0:01:07]} Rxe7 {[%emt 0:00:39]} 23. fxe7 {[%emt 0:00:05]} Re8 {[%emt 0:00:30] [#]} 24. Nxb5 $1 {[%emt 0:02:09]} cxb5 {[%emt 0:01:07]} 25. Bxb5 {[%emt 0:00:05]} Rxe7 {[%emt 0:00:27]} 26. Rxe7 {[%emt 0:00:04]} g6 {[%emt 0:00:11]} 27. g4 {[%emt 0:01:34]} Kf8 {[%emt 0:01:36]} 28. Rxa7 {[%emt 0:00:14]} Ng8 {[%emt 0:00:22]} 29. Bc4 {[%emt 0:01:00]} Ne7 {[%emt 0:00:15]} 30. Rd7 {[%emt 0:01:10]} d5 {[%emt 0:02:50]} 31. Rd8+ {[%emt 0:00:13]} Kg7 {[%emt 0:00:17]} 32. Bxd5 {[%emt 0:00:05]} Kf6 {[%emt 0:00:51]} 33. Rd7 {[%emt 0:00:44]} h6 {[%emt 0:00:39]} 34. a4 {[%emt 0:00:19]} g5 {[%emt 0:00:32]} 35. a5 {[%emt 0:00:06]} 1-0

[Event "WALTON 1st Div Women League 2023"]
[Site "Dhaka"]
[Date "2023.03.22"]
[Round "1.5"]
[White "Nargis, Kaumudi"]
[Black "Jannatul, Ferdous"]
[Result "0-1"]
[ECO "D02"]
[WhiteElo "1253"]
[BlackElo "1697"]
[Annotator "NA RC COMBH"]
[PlyCount "78"]
[EventDate "2023.03.22"]
[EventType "team-tourn"]
[EventCountry "BAN"]
[SourceTitle "playchess.com"]
[Source "ChessBase"]
[SourceQuality "1"]
[TimeControl "5400+30"]

1. d4 {[%emt 0:00:03]} d5 {[%emt 0:00:17]} 2. Nf3 {[%emt 0:00:10]} Nf6 {[%emt 0:00:06]} 3. Nbd2 {[%emt 0:00:29]} e6 {[%emt 0:00:10]} 4. c3 {[%emt 0:00:20]} Bd6 {[%emt 0:00:22]} 5. Qc2 {[%emt 0:00:14]} Nbd7 {[%emt 0:00:08]} 6. e4 {[%emt 0:00:10]} dxe4 {[%emt 0:00:10]} 7. Nxe4 {[%emt 0:00:14]} Nxe4 {[%emt 0:00:10]} 8. Qxe4 {[%emt 0:00:10]} Nf6 {[%emt 0:00:04]} 9. Qc2 {[%emt 0:00:27]} h6 {[%emt 0:00:11]} 10. Bd3 {[%emt 0:00:58]} O-O {[%emt 0:00:20]} 11. O-O {[%emt 0:00:07]} b6 {[%emt 0:03:52]} 12. Bd2 {[%emt 0:05:44]} Bb7 {[%emt 0:00:25]} 13. Be2 {[%emt 0:00:29]} Rc8 {[%emt 0:07:30]} 14. Qc1 {[%emt 0:01:14]} Kh7 {[%emt 0:08:09]} 15. Bd3+ {[%emt 0:00:20]} Ne4 {[%emt 0:00:48]} 16. g3 {[%emt 0:03:19]} f5 {[%emt 0:04:00]} 17. Be1 {[%emt 0:00:24]} Nxc3 {[%emt 0:04:05]} 18. bxc3 {[%emt 0:04:05]} Bxf3 {[%emt 0:00:12]} 19. Qe3 {[%emt 0:00:03]} Bg4 {[%emt 0:03:06]} 20. f4 {[%emt 0:02:25]} Qf6 {[%emt 0:01:08]} 21. Bf2 {[%emt 0:01:21]} c5 {[%emt 0:03:28]} 22. Rfe1 {[%emt 0:00:30]} Rfe8 {[%emt 0:01:00]} 23. Bb5 {[%emt 0:00:15]} Re7 {[%emt 0:00:41]} 24. Rac1 {[%emt 0:01:33]} g5 {[%emt 0:10:22]} 25. Bd3 {[%emt 0:03:58]} Rg8 {[%emt 0:05:04]} 26. Kh1 {[%emt 0:02:24]} Qg6 {[%emt 0:07:05]} 27. Bf1 {[%emt 0:07:56]} Qh5 {[%emt 0:03:30]} 28. Bg2 {[%emt 0:03:52]} Rg6 {[%emt 0:06:46]} 29. a4 {[%emt 0:01:40]} Reg7 {[%emt 0:01:51]} 30. d5 {[%emt 0:00:39]} exd5 {[%emt 0:10:25]} 31. Bxd5 {[%emt 0:00:21]} Re7 {[%emt 0:00:26]} 32. Qd2 {[%emt 0:02:56]} Bf3+ {[%emt 0:01:55]} 33. Kg1 {[%emt 0:00:43]} Reg7 {[%emt 0:06:55]} 34. Re6 {[%emt 0:01:11]} Qh3 {[%emt 0:03:50]} 35. Be3 {[%emt 0:00:50]} Rxe6 {[%emt 0:01:37]} 36. Bxe6 {[%emt 0:00:15]} gxf4 {[%emt 0:03:09]} 37. Bxf5+ {[%emt 0:01:37]} Qxf5 {[%emt 0:00:11]} 38. Qxd6 {[%emt 0:00:11]} fxe3 {[%emt 0:00:11]} 39. Rf1 {[%emt 0:00:05]} e2 {[%emt 0:06:21]} 0-1

[Event "WALTON 1st Div Women League 2023"]
[Site "Dhaka"]
[Date "2023.03.22"]
[Round "1.6"]
[White "Nusrat Jahan, Alo"]
[Black "Sharmin, Khan"]
[Result "1-0"]
[ECO "C02"]
[WhiteElo "1787"]
[BlackElo "1290"]
[Annotator "NA RC COMBH"]
[PlyCount "51"]
[EventDate "2023.03.22"]
[EventType "team-tourn"]
[EventCountry "BAN"]
[SourceTitle "playchess.com"]
[Source "ChessBase"]
[SourceQuality "1"]
[TimeControl "5400+30"]

1. e4 {[%emt 0:00:11]} e6 {[%emt 0:00:11]} 2. d4 {[%emt 0:00:07]} d5 {[%emt 0:00:15]} 3. e5 {[%emt 0:00:07]} c5 {[%emt 0:00:22]} 4. c3 {[%emt 0:00:21]} cxd4 {[%emt 0:00:36]} 5. cxd4 {[%emt 0:00:09]} a6 {[%emt 0:00:37]} 6. Nf3 {[%emt 0:00:17]} Ne7 {[%emt 0:00:47]} 7. Bd3 {[%emt 0:00:33]} Ng6 {[%emt 0:01:01]} 8. a3 {[%emt 0:00:53]} Be7 {[%emt 0:01:16]} 9. Nc3 {[%emt 0:00:48]} Nc6 {[%emt 0:00:55]} 10. b4 {[%emt 0:03:46]} O-O {[%emt 0:03:53]} 11. O-O {[%emt 0:02:48]} b6 {[%emt 0:05:45]} 12. Be3 {[%emt 0:01:52]} Bb7 {[%emt 0:02:59]} 13. Rc1 {[%emt 0:02:35]} b5 {[%emt 0:06:10]} 14. Nd2 {[%emt 0:05:44]} Qc7 {[%emt 0:05:00]} 15. Nb3 {[%emt 0:02:52]} Rac8 {[%emt 0:05:01]} 16. f4 {[%emt 0:10:40]} Qd8 {[%emt 0:04:15]} 17. f5 {[%emt 0:03:21]} exf5 {[%emt 0:00:43]} 18. Bxf5 {[%emt 0:00:16]} Rb8 {[%emt 0:00:25]} 19. e6 {[%emt 0:03:09]} f6 {[%emt 0:02:15]} 20. Qh5 {[%emt 0:00:25]} Na7 {[%emt 0:13:17]} 21. Rf3 {[%emt 0:01:07]} Qe8 {[%emt 0:02:52]} 22. Rh3 {[%emt 0:00:21]} h6 {[%emt 0:00:28]} 23. Bxg6 {[%emt 0:00:08]} Rf7 {[%emt 0:00:44]} 24. Bxf7+ {[%emt 0:00:16]} Qxf7 {[%emt 0:00:53]} 25. Qxf7+ {[%emt 0:00:07]} Kh7 {[%emt 0:00:51]} 26. Rxh6# {[%emt 0:00:17]} 1-0

[Event "WALTON 1st Div Women League 2023"]
[Site "Dhaka"]
[Date "2023.03.22"]
[Round "1.7"]
[White "Mahjabeen, Islam"]
[Black "Srija, Seshadri"]
[Result "0-1"]
[ECO "C55"]
[WhiteElo "1180"]
[BlackElo "2194"]
[Annotator "TA"]
[PlyCount "36"]
[EventDate "2023.03.22"]
[EventType "team-tourn"]
[EventCountry "BAN"]
[SourceTitle "playchess.com"]
[Source "ChessBase"]
[SourceQuality "1"]
[TimeControl "5400+30"]

{[%evp 9,36,4,37,22,30,5,34,-23,25,-53,-61,-58,-39,-80,-73,-73,-76,-79,-76,-125,-130,-136,-138,-143,-139,-133,-138,-160,-156]} 1. e4 {[%emt 0:00:18]} e5 {[%emt 0:00:19]} 2. Nf3 {[%emt 0:00:09]} Nc6 {[%emt 0:00:07]} 3. Bc4 {[%emt 0:00:30]} Nf6 {[%emt 0:00:10]} 4. Nc3 {[%emt 0:00:31]} h6 {[%emt 0:00:46]} 5. a3 {[%emt 0:00:10]} d6 {[%emt 0:00:29][%cal Bd7d6,Bd6d5,Bd5e4][%mdl 32]} 6. d3 {[%emt 0:00:54] C55: Two Knights: 4 d3, 4 d4 exd4 5 e5 and Max Lange Attack.} Be6 {[%emt 0:02:03] [#]} 7. Bb3 $146 {[%emt 0:04:19]} ({Predecessor:} 7. Bxe6 fxe6 8. h3 a6 9. Nh4 Ne7 10. Be3 b6 11. d4 exd4 12. Bxd4 e5 13. Be3 {0-1 Medina Coneo,A (1728)-Cardona Rodriguez,O (1600) Caqueta Florencia op 2016 (6)}) 7... Qd7 {[%emt 0:00:55]} 8. Be3 {[%emt 0:01:22]} (8. Nd5 $14) 8... a6 {[%emt 0:01:36]} (8... Bxb3 $142 9. cxb3 d5 10. exd5 Nxd5) 9. h3 {[%emt 0:01:58]} ({White should try} 9. Nd5 $11) 9... Bxb3 $15 {[%emt 0:07:54]} 10. cxb3 {[%emt 0:00:14]} d5 {[%emt 0:00:29]} 11. d4 {[%emt 0:05:09]} exd4 {[%emt 0:01:37]} ({Don't play} 11... dxe4 12. Nxe5 Qe6 13. Nxc6 bxc6 14. b4 $11) 12. Nxd4 {[%emt 0:00:17]} dxe4 {[%emt 0:00:55]} ({Much weaker is} 12... Nxe4 $6 13. Nxe4 dxe4 14. Nxc6 Qxc6 15. Qd4 $11) 13. Nxc6 {[%emt 0:01:53]} Qxc6 {[%emt 0:00:14]} 14. Qc2 {[%emt 0:03:33]} ({Better is} 14. Qd4) 14... O-O-O $17 {[%emt 0:01:48]} 15. O-O {[%emt 0:07:59]} Bd6 {[%emt 0:00:48] Black is clearly better.} 16. Rfd1 {[%emt 0:06:21]} Be5 {[%emt 0:04:08] Wards off Rd4} 17. b4 {[%emt 0:06:07]} Qc4 {[%emt 0:04:50]} 18. Rac1 {[%emt 0:06:17]} Rd3 {[%emt 0:02:45] White did not feel at home in the position after the opening.   Weighted Error Value: White=0.30/Black=0.10 (very precise)} 0-1

[Event "WALTON 1st Div Women League 2023"]
[Site "Dhaka"]
[Date "2023.03.22"]
[Round "1.9"]
[White "Nazmin, Akter"]
[Black "Sidratul, Muntaha"]
[Result "1-0"]
[ECO "D02"]
[WhiteElo "1258"]
[BlackElo "1185"]
[Annotator "NA COMBH"]
[PlyCount "87"]
[EventDate "2023.03.22"]
[EventType "team-tourn"]
[EventCountry "BAN"]
[SourceTitle "playchess.com"]
[Source "ChessBase"]
[SourceQuality "1"]
[TimeControl "5400+30"]

1. d4 {[%emt 0:00:05]} d5 {[%emt 0:00:15]} 2. Nf3 {[%emt 0:00:10]} Nf6 {[%emt 0:00:33]} 3. h3 {[%emt 0:00:13]} Nc6 {[%emt 0:00:38]} 4. c3 {[%emt 0:00:22]} e6 {[%emt 0:00:28]} 5. g3 {[%emt 0:00:08]} h6 {[%emt 0:00:22]} 6. Bg2 {[%emt 0:00:09]} Bd6 {[%emt 0:00:45]} 7. Nbd2 {[%emt 0:00:52]} Qe7 {[%emt 0:01:18]} 8. Nb3 {[%emt 0:02:33]} e5 {[%emt 0:02:48]} 9. dxe5 {[%emt 0:00:26]} Nxe5 {[%emt 0:00:46]} 10. Nxe5 {[%emt 0:02:20]} Qxe5 {[%emt 0:00:32]} 11. Nd4 {[%emt 0:00:34]} a6 {[%emt 0:00:55]} 12. a4 {[%emt 0:01:07]} O-O {[%emt 0:01:44]} 13. O-O {[%emt 0:00:06]} Qe7 {[%emt 1:25:56]} 14. Re1 {[%emt 0:00:37]} c5 {[%emt 0:00:00]} 15. Nf3 {[%emt 0:00:26]} Ne4 {[%emt 0:00:00]} 16. Qxd5 {[%emt 0:00:22]} Nf6 {[%emt 0:00:00]} 17. Qd1 {[%emt 0:00:14]} Be6 {[%emt 0:00:00]} 18. e4 {[%emt 0:01:16]} Bc7 {[%emt 0:02:30]} 19. Qc2 {[%emt 0:01:10]} b6 {[%emt 0:00:00]} 20. Nh4 {[%emt 0:01:14]} Rfe8 {[%emt 0:00:00]} 21. f4 {[%emt 0:02:00]} g6 {[%emt 0:00:00]} 22. Be3 {[%emt 0:02:03]} c4 {[%emt 0:00:00]} 23. Bf2 {[%emt 0:00:26]} Qd7 {[%emt 0:00:00]} 24. Kh2 {[%emt 0:00:34]} Qc8 {[%emt 0:00:00]} 25. Nf3 {[%emt 0:00:31]} Nd7 {[%emt 0:00:00]} 26. Nd4 {[%emt 0:00:36]} Nc5 {[%emt 0:00:00]} 27. f5 {[%emt 0:00:15]} gxf5 {[%emt 0:00:00]} 28. Nxf5 {[%emt 0:00:59]} Nd3 {[%emt 0:00:00]} 29. Re2 {[%emt 0:00:38]} Bxf5 {[%emt 0:00:00]} 30. exf5 {[%emt 0:00:28]} Qxf5 {[%emt 0:00:00]} 31. Bxa8 {[%emt 0:00:14]} Rxe2 {[%emt 0:00:00]} 32. Qxe2 {[%emt 0:00:15]} Ne5 {[%emt 0:00:00]} 33. Bd4 {[%emt 0:00:38]} Nd3 {[%emt 0:00:00]} 34. Qe8+ {[%emt 0:00:32]} Kh7 {[%emt 0:00:00]} 35. Be4 {[%emt 0:00:30]} Qg6 {[%emt 0:00:00]} 36. Bxg6+ {[%emt 0:00:13]} Kxg6 {[%emt 0:00:00]} 37. Qg8+ {[%emt 0:00:24]} Kf5 {[%emt 0:00:00]} 38. Qxf7+ {[%emt 0:00:20]} Ke4 {[%emt 0:00:00]} 39. Qxc7 {[%emt 0:00:16]} b5 {[%emt 0:00:00]} 40. axb5 {[%emt 0:00:39]} axb5 {[%emt 0:00:00]} 41. Qc6+ {[%emt 0:00:13]} Kf5 {[%emt 0:00:00]} 42. Rf1+ {[%emt 0:00:30]} Kg5 {[%emt 0:00:00]} 43. Qf6+ {[%emt 0:00:09]} Kh5 {[%emt 0:00:00]} 44. g4# {[%emt 0:00:19]} 1-0

[Event "WALTON 1st Div Women League 2023"]
[Site "Dhaka"]
[Date "2023.03.22"]
[Round "1.10"]
[White "Sonia, Akhter"]
[Black "Warisa Haider"]
[Result "1/2-1/2"]
[ECO "D02"]
[WhiteElo "1180"]
[BlackElo "1302"]
[Annotator "NA RC COMBH"]
[PlyCount "48"]
[EventDate "2023.03.22"]
[EventType "team-tourn"]
[EventCountry "BAN"]
[SourceTitle "playchess.com"]
[Source "ChessBase"]
[SourceQuality "1"]
[TimeControl "5400+30"]

1. d4 {[%emt 0:00:14]} d5 {[%emt 0:00:23]} 2. Nf3 {[%emt 0:02:05]} e6 {[%emt 0:00:28]} 3. Bf4 {[%emt 0:02:37]} Nf6 {[%emt 0:01:19]} 4. h3 {[%emt 0:00:41]} Bd6 {[%emt 0:01:07]} 5. Ne5 {[%emt 0:01:50]} O-O {[%emt 0:00:34]} 6. e3 {[%emt 0:00:19]} Bxe5 {[%emt 0:01:31]} 7. Bxe5 {[%emt 0:00:42]} Nbd7 {[%emt 0:00:50]} 8. Bd3 {[%emt 0:03:51]} c5 {[%emt 0:02:12]} 9. O-O {[%emt 0:01:10]} c4 {[%emt 0:01:30]} 10. Be2 {[%emt 0:00:24]} Nxe5 {[%emt 0:02:04]} 11. dxe5 {[%emt 0:01:35]} Ne4 {[%emt 0:01:17]} 12. Qd4 {[%emt 0:03:15]} f6 {[%emt 0:02:48]} 13. Nc3 {[%emt 0:02:32]} Nxc3 {[%emt 0:07:30]} 14. Qxc3 {[%emt 0:03:04]} Bd7 {[%emt 0:01:43]} 15. g4 {[%emt 0:18:52]} fxe5 {[%emt 0:03:36]} 16. Qxe5 {[%emt 0:00:49]} Qh4 {[%emt 0:02:27]} 17. Qd6 {[%emt 0:11:31]} Rad8 {[%emt 0:03:00]} 18. Qc7 {[%emt 0:03:15]} Qxh3 {[%emt 0:02:21]} 19. Qxb7 {[%emt 0:00:29]} Rf6 {[%emt 0:01:05]} 20. Qc7 {[%emt 0:06:05]} Rdf8 {[%emt 0:00:56]} 21. f3 {[%emt 0:01:32]} R6f7 {[%emt 0:07:48]} 22. Qe5 {[%emt 0:06:59]} Qh4 {[%emt 0:07:56]} 23. c3 {[%emt 0:00:53]} Qh6 {[%emt 0:02:31]} 24. Kf2 {[%emt 0:02:24]} Qh4+ {[%emt 0:02:25]} 1/2-1/2

[Event "WALTON 1st Div Women League 2023"]
[Site "Dhaka"]
[Date "2023.03.22"]
[Round "1.14"]
[White "Jarin, Tasnim"]
[Black "Neelava, Choudhury"]
[Result "0-1"]
[ECO "C68"]
[WhiteElo "1180"]
[BlackElo "1522"]
[Annotator "NA RC COMBH"]
[PlyCount "102"]
[EventDate "2023.03.22"]
[EventType "team-tourn"]
[EventCountry "BAN"]
[SourceTitle "playchess.com"]
[Source "ChessBase"]
[SourceQuality "1"]
[TimeControl "5400+30"]

1. e4 {[%emt 0:00:04]} e5 {[%emt 0:36:53]} 2. Nf3 {[%emt 0:00:09]} Nc6 {[%emt 0:00:07]} 3. Bb5 {[%emt 0:00:20]} a6 {[%emt 0:00:28]} 4. Bxc6 {[%emt 0:00:43]} dxc6 {[%emt 0:00:06]} 5. Nxe5 {[%emt 0:00:19]} Qd4 {[%emt 0:01:38]} 6. Nf3 {[%emt 0:04:29]} Qxe4+ {[%emt 0:01:06]} 7. Qe2 {[%emt 0:00:24]} Qxe2+ {[%emt 0:01:28]} 8. Kxe2 {[%emt 0:00:09]} Bf5 {[%emt 0:01:42]} 9. d3 {[%emt 0:00:28]} Bd6 {[%emt 0:01:28]} 10. Re1 {[%emt 0:00:47]} O-O-O {[%emt 0:01:16]} 11. Kf1 {[%emt 0:00:25]} Ne7 {[%emt 0:49:48]} 12. Nd4 {[%emt 0:01:09]} Bg6 {[%emt 0:00:00]} 13. Nc3 {[%emt 0:01:02]} Rhe8 {[%emt 0:00:00]} 14. Kg1 {[%emt 0:01:40]} Bxh2+ {[%emt 0:00:00]} 15. Kxh2 {[%emt 0:00:22]} Rxd4 {[%emt 0:00:00]} 16. Be3 {[%emt 0:00:39]} Rdd8 {[%emt 0:00:00]} 17. Re2 {[%emt 0:00:59]} Nf5 {[%emt 0:00:00]} 18. Rae1 {[%emt 0:02:37]} Re7 {[%emt 0:00:00]} 19. Bc5 {[%emt 0:04:46]} Rxe2 {[%emt 0:00:00]} 20. Rxe2 {[%emt 0:01:26]} f6 {[%emt 0:00:00]} 21. Be7 {[%emt 0:01:47]} Re8 {[%emt 0:00:00]} 22. Bc5 {[%emt 0:00:19]} Rxe2 {[%emt 0:00:00]} 23. Nxe2 {[%emt 0:00:25]} b6 {[%emt 0:00:00]} 24. Bb4 {[%emt 0:00:17]} c5 {[%emt 0:00:00]} 25. Bc3 {[%emt 0:00:23]} Bh5 {[%emt 0:00:00]} 26. Nf4 {[%emt 0:04:01]} Bd1 {[%emt 0:00:00]} 27. Ne6 {[%emt 0:02:45]} Bxc2 {[%emt 0:00:00]} 28. g4 {[%emt 0:00:39]} Nh6 {[%emt 0:00:00]} 29. Nxg7 {[%emt 0:00:50]} Bxd3 {[%emt 0:00:00]} 30. Kg3 {[%emt 0:01:01]} f5 {[%emt 0:00:00]} 31. gxf5 {[%emt 0:00:34]} Nxf5+ {[%emt 0:00:00]} 32. Nxf5 {[%emt 0:00:09]} Bxf5 {[%emt 0:00:00]} 33. f4 {[%emt 0:00:20]} Kd7 {[%emt 0:00:00]} 34. Kh4 {[%emt 0:00:19]} b5 {[%emt 0:00:00]} 35. a3 {[%emt 0:00:18]} Ke6 {[%emt 0:00:00]} 36. Kg5 {[%emt 0:00:20]} Bc2 {[%emt 0:00:00]} 37. Kh6 {[%emt 0:00:50]} Kd5 {[%emt 0:00:00]} 38. Kg5 {[%emt 0:00:12]} Kc4 {[%emt 0:00:00]} 39. f5 {[%emt 0:00:25]} b4 {[%emt 0:00:00]} 40. axb4 {[%emt 0:00:25]} cxb4 {[%emt 0:00:00]} 41. Be5 {[%emt 0:00:23]} Kb3 {[%emt 0:00:00]} 42. f6 {[%emt 0:00:24]} Bg6 {[%emt 0:00:00]} 43. Kh6 {[%emt 0:00:39]} c5 {[%emt 0:00:00]} 44. Kg7 {[%emt 0:00:05]} c4 {[%emt 0:00:00]} 45. f7 {[%emt 0:00:05]} Bxf7 {[%emt 0:00:00]} 46. Kxf7 {[%emt 0:00:10]} a5 {[%emt 0:00:00]} 47. Kg7 {[%emt 0:00:13]} h5 {[%emt 0:00:00]} 48. Kg6 {[%emt 0:00:13]} h4 {[%emt 0:00:00]} 49. Kg5 {[%emt 0:00:15]} h3 {[%emt 0:00:00]} 50. Kg4 {[%emt 0:00:08]} h2 {[%emt 0:00:00]} 51. Bxh2 {[%emt 0:00:31]} Kxb2 {[%emt 0:00:00]} 0-1